Cogmind - Beta 10.2 @@@ ROGUE MODE // 2021.03.15 @ 03:30:21 Player: Clifton Shawgrass Result: Destroyed by G-34 Mercenary with Small Laser Performance ------------- Evolutions (1) 500 Regions Visited (2) 400 Robots Destroyed (35) 175 Value Destroyed (666) 666 Prototype IDs (2) 40 Alien Tech Used (0) 0 Bonus (0) 0 TOTAL SCORE: 1781 Bonus ------- None Cogmind --------- Core Integrity 0/400 Matter 245/300 Energy 265/265 System Corruption 0% Temperature Cool (6) Movement Rolling (100) Ox1 Location -9/Materials Parts ------- > --- POWER (2) -------- Improved Ion Engine > --- PROPULSION (2) --- Wheel Compact Wheel > --- UTILITY (3) ------ Large Storage Unit Armor Integrity Analyzer Armor Integrity Analyzer > --- WEAPON (2) ------- Assault Rifle Improved Light Cannon > --- INVENTORY (10) --- High-capacity Storage Unit Structural Scanner Salvage Targeting Computer Targeting Computer ECM Suite ECM Suite Mini Grenade Launcher Mini Grenade Launcher Mini Grenade Launcher Flail Peak State ------------ > --- POWER ------------ Ion Engine > --- PROPULSION ------- Light Treads Aluminum Leg > --- UTILITY ---------- Large Storage Unit Weight Redist. System Armor Integrity Analyzer > --- WEAPON ----------- Improved Light Cannon Improved Light Cannon > --- INVENTORY -------- High-capacity Storage Unit Structural Scanner Armor Integrity Analyzer ECM Suite ECM Suite Medium Laser Beam Cannon Assault Rifle Improved Light Cannon Heavy Hammer [Rating: 13] Favorites ----------- Power Ion Engine Engine Ion Engine Propulsion Wheel Treads Light Treads Leg Aluminum Leg Wheel Wheel Flight Unit Flight Unit Utility Armor Integrity Analyzer Device ECM Suite Storage Large Storage Unit Processor Armor Integrity Analyzer Protection Light Armor Plating Weapon Assault Rifle Energy Gun EM Pulse Gun Energy Cannon Beam Cannon Ballistic Gun Assault Rifle Ballistic Cannon Improved Light Cannon Impact Weapon Heavy Hammer Build | -11 -10 -9 ------- Run | Scr Mat Mat Slots Evolved 2 | . . 2 Power 1 | . . 1 Propulsion . | . . . Utility 1 | . . 1 Weapon . | . . . Parts Attached 48 | 6 26 16 Power 7 | 1 5 1 Engine 7 | 1 5 1 Core . | . . . Reactor . | . . . Propulsion 13 | 2 9 2 Treads 1 | . 1 . Leg 4 | . 4 . Wheel 5 | 2 1 2 Hover . | . . . Flight 3 | . 3 . Utility 12 | 1 6 5 Device 7 | 1 2 4 Storage 2 | . 2 . Processor 2 | . 1 1 Hackware . | . . . Protection 1 | . 1 . Artifact . | . . . Weapon 16 | 2 6 8 Energy Gun 2 | . 1 1 Energy Cannon 2 | . 1 1 Ballistic Gun 4 | 2 1 1 Ballistic Cannon 5 | . 2 3 Launcher . | . . . Special Weapon . | . . . Impact Weapon 3 | . 1 2 Slashing Weapon . | . . . Piercing Weapon . | . . . Special Melee Weapon . | . . . Unidentified Prototypes . | . . . Parts Lost 12 | . 5 7 Power 2 | . 1 1 Propulsion 4 | . 2 2 Utility . | . . . Weapon 6 | . 2 4 Highest Loss Streak 3 | . 3 3 Average Slot Usage (%) 77 | . 86 66 Engine 7 | . 11 3 Treads 1 | . . 2 Leg 2 | . 3 2 Wheel 9 | . 13 4 Device 8 | . 11 6 Storage 12 | . 13 11 Processor 8 | . 3 15 Energy Cannon 5 | . 6 4 Ballistic Gun 10 | . 13 6 Ballistic Cannon 7 | . 6 8 Naked Turns . | . . . Heaviest Build 30 | 7 29 30 Greatest Support 26 | 20 20 26 Greatest Overweight (x) 8 | . 3 8 Average Overweight (x) 1 | . 1 2 Largest Inventory Capacity 10 | 4 10 10 Average Capacity 8 | 4 7 10 Most Carried 10 | 4 10 10 Average Carried 6 | 3 5 8 Final Capacity 10 | 4 10 10 Final Carried 10 | 4 10 10 Class Distribution -------------------- 100% | Mutant Dominant Class ---------------- Mutant | -10/Materials Mutant | -9/Materials Resources | -11 -10 -9 ----------- Run | Scr Mat Mat Matter Collected 1058 | 268 418 372 Remotely . | . . . Salvage Created 869 | 30 286 553 Parts 55 | 3 26 26 Haulers Intercepted . | . . . Recyclers Shooed 1 | . 1 . Parts Field Recycled . | . . . Retrieved Matter . | . . . Parts Self-Destructed . | . . . Prevented . | . . . Kills | -11 -10 -9 ------- Run | Scr Mat Mat Combat Hostiles Destroyed 25 | 1 9 15 Melee 3 | . . 3 Guns 11 | 1 8 2 Cannons 8 | . 1 7 AOE 1 | . . 1 Classes Destroyed 7 | 1 4 2 Worker 4 | . 1 3 Builder 1 | . 1 . Recycler 2 | . . 2 Watcher 3 | . 3 . Swarmer 15 | . 7 8 Grunt 6 | 1 2 3 Sentry 4 | . . 4 Best Kill Streak 8 | 1 4 8 Combat Bots Only 8 | 1 3 8 Max Kills in Single Turn 2 | 1 2 2 Gunslinging 1 | . 1 . Exploded 1 | . . 1 Melee 1 | . . 1 Uniques/NPCs Destroyed . | . . . Combat | -11 -10 -9 -------- Run | Scr Mat Mat Damage Taken 2093 | 73 660 1360 Core 562 | 17 141 404 Absorbed by Shields . | . . . Core Remaining (%) 64 | 93 36 . Volleys Fired 104 | 7 54 43 Largest 2 | 1 2 2 Hottest 99 | 20 99 80 Shots Fired 171 | 7 90 74 Gun 96 | 7 70 19 Cannon 75 | . 20 55 Launcher . | . . . Special . | . . . Kinetic 142 | 7 72 63 Thermal 24 | . 13 11 Explosive . | . . . Electromagnetic 5 | . 5 . Robot Hit Streak 9 | 2 9 8 Robot Miss Streak 5 | 3 5 3 Penetration Max . | . . . Secondary Targets 2 | . 2 . Max Gunslinging Chain 1 | . 1 . Shots Hit Robots 117 | 3 48 66 Core Hits 38 | 1 16 21 Critical Hits 2 | 1 . 1 Critical Kills . | . . . Critical Parts Destroyed 2 | 1 . 1 Melee Attacks 25 | . 1 24 Impact 25 | . 1 24 Slashing . | . . . Piercing . | . . . Sneak Attacks . | . . . Combat Hostiles . | . . . Follow-up Attacks . | . . . Damage Inflicted 2344 | 53 720 1571 Guns 759 | 43 569 147 Cannons 857 | . 98 759 Explosions 164 | . . 164 Melee 528 | . 36 492 Ramming 36 | 10 17 9 Kinetic 1408 | 43 599 766 Thermal 357 | . 53 304 Explosive . | . . . Electromagnetic 15 | . 15 . Impact 528 | . 36 492 Slashing . | . . . Piercing . | . . . Highest Corruption 2 | . 2 . Average Corruption 2 | . 2 . Corruption Purged . | . . . Effects 2 | . 2 . Message Errors 1 | . 1 . Data Loss (minor) 1 | . 1 . Overload Shots . | . . . Overflow Damage 94 | . 24 70 Projectiles 22 | . 10 12 Explosions . | . . . Melee 72 | . 14 58 Knockbacks 11 | . 1 10 Impact 3 | . . 3 Kinetic 5 | . 1 4 Secondary 3 | . . 3 Self-Inflicted Damage 126 | 5 8 113 Shots 1 | . . 1 Rammed 4 | 1 2 1 Targets Rammed 4 | 1 2 1 Kicked . | . . . Crushed . | . . . Highest Temperature 117 | . 117 27 Average Temperature 22 | . 32 7 Received Heat Transfer 459 | 36 144 279 Siege Activations . | . . . Robots Corrupted . | . . . Combat Hostiles . | . . . Parts Fried 2 | . 1 1 Impact Corruptions 4 | . 1 3 Robots Melted . | . . . Combat Hostiles . | . . . Parts Melted 1 | . . 1 Heat Transferred 507 | . 111 396 Parts Sabotaged . | . . . Parts Stolen . | . . . Parts Stripped . | . . . Power Chain Reactions . | . . . Missiles Intercepted . | . . . Alert | -11 -10 -9 ------- Run | Scr Mat Mat Peak Influence 308 | 20 282 308 Initial 13 | . 13 8 Average 120 | 6 104 157 Maximum Alert Level 1 | . 1 1 Low Security (%) 88 | 100 96 77 Level 1 11 | . 3 22 Level 2 . | . . . Level 3 . | . . . Level 4 . | . . . Level 5 . | . . . High Security . | . . . Max Security . | . . . Squads Dispatched 1 | . . 1 Investigation . | . . . Extermination . | . . . Reinforcement 1 | . . 1 Assault . | . . . Garrison . | . . . Intercept . | . . . Construction Impeded . | . . . Haulers Reinforced . | . . . Stealth | -11 -10 -9 --------- Run | Scr Mat Mat Distress Signals 2 | . . 2 Communications Jammed . | . . . Distress Signals . | . . . Times Spotted 47 | 1 25 21 Peak Tracking Total 5 | 1 4 5 Tactical Retreats 10 | . 7 3 Traps | -11 -10 -9 ------- Run | Scr Mat Mat Traps Triggered 1 | . 1 . Indirectly . | . . . Trap Hack Attempts . | . . . Triggered . | . . . Disarmed 4 | . 4 . Reprogrammed . | . . . Reused . | . . . Traps Extracted . | . . . Installed . | . . . Triggered . | . . . Machines | -11 -10 -9 ---------- Run | Scr Mat Mat Machines Disabled 5 | . 4 1 Max in Single Turn 1 | . 1 1 Machines Sabotaged . | . . . Garrisons Compromised . | . . . Overloaded Fab Kills . | . . . Fab Network Shutdowns . | . . . Hacking | -11 -10 -9 --------- Run | Scr Mat Mat Machines Accessed 10 | . 7 3 Terminals 8 | . 6 2 Fabricators . | . . . Repair Stations . | . . . Recycling Units 1 | . 1 . Scanalyzers 1 | . . 1 Garrison Access . | . . . Total Hacks 26 | . 20 6 Successful 22 | . 16 6 Failed 4 | . 4 . Catastrophic . | . . . Database Lockouts . | . . . Manual . | . . . Terminals 18 | . 16 2 Fabricators . | . . . Repair Stations . | . . . Recycling Units 4 | . 4 . Scanalyzers 4 | . . 4 Garrison Access . | . . . Terminal Hacks 14 | . 12 2 Record 6 | . 6 . Prototype ID Bank 1 | . 1 . Alert Level 1 | . . 1 Locate Traps 1 | . 1 . Disarm Traps 1 | . 1 . Hauler Manifests 1 | . 1 . Zone Layout 3 | . 2 1 Fabricator Hacks . | . . . Repair Station Hacks . | . . . Recycling Unit Hacks 4 | . 4 . Recycle Component 3 | . 3 . Process 1 | . 1 . Scanalyzer 4 | . . 4 Insert Component 2 | . . 2 Analyze 2 | . . 2 Garrison Access Hacks . | . . . Unauthorized Hacks . | . . . Terminals . | . . . Fabricators . | . . . Repair Stations . | . . . Recycling Units . | . . . Scanalyzers . | . . . Garrison Access . | . . . Data Cores Recovered . | . . . Used . | . . . Hacking Detections 6 | . 5 1 Full Trace Events 3 | . 2 1 Feedback Events . | . . . Feedback Blocked . | . . . Robot Schematics Acquired . | . . . Robots Built . | . . . Matter . | . . . Time . | . . . Total Robot Build Rating . | . . . Part Schematics Acquired 2 | . . 2 Parts Built . | . . . Matter . | . . . Time . | . . . Total Part Build Rating . | . . . Parts Repaired . | . . . Time . | . . . Parts Recycled 3 | . 3 . Recycled Matter 1 | . 1 . Retrieved Matter . | . . . Retrieved Components . | . . . Parts Scanalyzed 2 | . . 2 Part Schematics Acquired 2 | . . 2 Parts Damaged . | . . . Bothacking | -11 -10 -9 ------------ Run | Scr Mat Mat Used RIF Installer . | . . . Robots Hacked . | . . . Non-combat . | . . . Combat . | . . . Robot Hacks Applied . | . . . Relay Couplers Released . | . . . Robots Rewired . | . . . Allies Hacked . | . . . Hacks Repelled . | . . . Allies | -11 -10 -9 -------- Run | Scr Mat Mat Total Allies . | . . . Largest Group . | . . . Highest-Rated Group . | . . . Highest-Rated Ally . | . . . Total Orders . | . . . Ally Attacks . | . . . Total Damage . | . . . Kills . | . . . Allies Corrupted . | . . . Allies Melted . | . . . Intel | -11 -10 -9 ------- Run | Scr Mat Mat Robot Analysis Total . | . . . Derelict Logs Recovered . | . . . Drone Launches . | . . . Drone Recoveries . | . . . Exploration | -11 -10 -9 ------------- Run | Scr Mat Mat Turns Passed 2484 | 144 1286 1054 Spaces Moved 1425 | 151 910 364 Core 166 | 35 11 120 Treads 103 | . 18 85 Legs 112 | . 112 . Wheels 1044 | 116 769 159 Hover . | . . . Flight . | . . . Fastest Speed 50 | 50 80 90 Average Speed 128 | 73 104 212 Slowest Speed 450 | 80 200 450 Overloaded Moves . | . . . Propulsion Burnouts . | . . . Robots Hopped . | . . . Cave-ins Triggered . | . . . Exploration Rate (%) 43 | 6 90 33 Regions Visited 2 Branch Regions . Pre-discovered Areas . | . . . Known Exits Taken . | . . . Unknown Exits Taken 2 | 1 1 . Scrap Searched . | . . . Spaces Dug . | . . . Terrain Destroyed 43 | . 2 41 Melee . | . . . Projectile 5 | . 2 3 AOE 38 | . . 38 Terrain Rammed . | . . . Walls Destroyed . | . . . Machines Disabled . | . . . Actions | -11 -10 -9 --------- Run | Scr Mat Mat Total 1854 | 175 1163 516 Wait 177 | 3 116 58 Move 1423 | 150 909 364 Hop . | . . . Pick Up 41 | 6 28 7 Fast Attach 19 | 6 9 4 Attach 11 | . 7 4 Detach 2 | . 2 . Swap 18 | . 10 8 Drop 28 | 2 23 3 Fire 104 | 7 54 43 Melee 25 | . 1 24 Ram 3 | 1 2 . Kick . | . . . Crush 1 | . . 1 Escape Stasis . | . . . Rewire 2 | . 2 . Trap . | . . . Miscellaneous . | . . . Route ------- -11/Scrapyard -10/Materials (discovered 3 exits: *Mat x2 / [*Min]) -9/Materials (discovered 1 exit: [*Mat]) History --------- Turn | Location | Event 2 | -11/Scrapyard | Met Revision 17 72 | -11/Scrapyard | Discovered new exit (range 8) 145 | -11/Scrapyard | Entered Materials 245 | -10/Materials | Discovered new exit (range 16) 302 | -10/Materials | Build established: Mutant 598 | -10/Materials | Core integrity fell below 50% 644 | -10/Materials | Lost 3 parts (1p1n1w) 935 | -10/Materials | Discovered new exit (range 15) 1350 | -10/Materials | Discovered new exit (range 16) 1431 | -10/Materials | Entered another Materials area 1431 | -9/Materials | Evolved 2 slots: Power x1, Utility x1 1635 | -9/Materials | Destroyed 8 combat bots 1870 | -9/Materials | Core integrity fell below 50% 1908 | -9/Materials | Lost 3 parts (3w) 2255 | -9/Materials | Core integrity fell below 20% 2477 | -9/Materials | Discovered new exit (range 9) 2485 | -9/Materials | Destroyed by G-34 Mercenary with Small Laser Last Messages --------------- Scanning: ECM Suite... Schematic downloaded. Schematics can be used at fabricators to build something. View all schematics in possession via the status screen. 02377_ Connecting with Scanalyzer... >>Insert(Mni. Grenade Launcher) Scanning Mni. Grenade Launcher... Ready to analyze. >>Scanalyze Scanning: Mni. Grenade Launcher... Schematic downloaded. 02381_ Acquired Salvage Targeting Computer. 02419_ Y-45 Defender destroyed. 02422_ Acquired 21 matter. 02435_ Connecting with Terminal... >>Layout(Zone) Retrieving Zone 9Q layout... Downloaded map data. 02477_ EXIT=FOUND 02479_ Terminal unresponsive. Map ----- +----------------------------------------------------+ | | | | | ?????????????????????????????????? | | ?????????????????????????????????? | | ?????????????????????????????????? | | ?????????????????????????????????? | | ?????????????????????????????????? | | ?????????????????????????????????? | | ?????????????????????????????????? | | ?????????????????????????????????? | | ?????????????????????????????????? | | ?????????????????????????????????? | | ?????????????????????????????????? | | ?????????????????????????????????? | | ?????????????????????????????????? | | ?????????????????????????????????? | | ?????????????????????????????????? | | ?????????????????????????????????? | | ?????????????????????????????????? | | ?????????????????????????????????? | | ?????????????????????????????????? | | ?????????????????"??????#####????? | | ###?????????????"R ????# #????? | | #???????????? """ ""??# < #????? | | #???????????# "" # #????? | | #???????????# o /@ #????? | | #???????????# # #????? | | #???????????# g ??# #????? | | #???????????######???## ##???? | | ######################## #???? | | #???? | | T #???? | | !! #???? | | ### ! ###### #???? | | ??# """ #?###########??? | | ??# """ #?# ! #??? | | ??# """ ### #??? | | ### """ # """ #??? | | # # + """""#??? | | " % # """""#??? | | "!""+####" "####### # """""#??? | | % % " ""Y"#?????# # """ #??? | | # #"""#?????# # #??? | | % " "####?????# ###########??? | | " #????????# # #????? | | "" #????????# + """ #????? | | " #????????### """ #????? | | ##"""""###########??# """ #????? | | ########## #??# #????? | | # """ #??#####+###????? | +----------------------------------------------------+ Best States ------------- Heat Dissipation 35 Energy Generation 12 Energy Capacity 265 Matter Stores 359 Matter Capacity 400 Sight Range 16 Terrain Scan Density 10 ECM Strength 2 Additional Mass Support 6 Armor Coverage 150 Evasion (%) 50 Armor Integrity Analysis 33 Recoil Reduction 1 Item Schematics ----------------- ECM Suite | -9/Materials | Scanalyzed Mni. Grenade Launcher | -9/Materials | Scanalyzed Robot Schematics ------------------ None Fabricated ------------ Nothing Alien Tech Used ----------------- None Achievements -------------- None Challenges ------------ None Game ------ Seed FlightThunderLoader Manual? 0 Play Time 00:47:47 Cumulative 5.5 hours Start 2021.03.15 @ 02:37:48 End 2021.03.15 @ 03:30:21 Sessions 2 Manual Loads 0 Difficulty Rogue Special Mode None Game No. 9 Rogue 9 Adventurer 0 Explorer 0 Win Type - Total 0 Types 0/0/0/0/0/0/0/0/0 Lore% 12 Gallery% 12 Achievement% 12 Wizard Run 0 Options --------- ASCII 0 Keyboard 1 Movement Numpad Keybinds 0 Fullscreen 2 Font 18/SmallcapsGlow Map View 76x50 Tactical HUD 1 Map Filters NONE Filters NONE Steam 1 RUN: 86dfb91f-0406-4acf-bc4f-9aa4715130cd